Workbook

Sheet Folha de Pontuações
B1: Insira as suas Classificações Aqui
C3: Aula | D3: Tipo | E3: Descrição | F3: Classificação
C4: Francês Moderno | D4: Trabalhos de Casa | E4: História da 2ª Guerra Mundial | F4: 80%
C5: Programação Avançada em Java | D5: Testes Intermédios | F5: 75%
C6: Espanhol | D6: Trabalhos de Casa | F6: 50%
C7: Física | D7: Trabalhos de Casa | F7: 95%
C8: Francês Moderno | D8: Trabalhos de Casa | E8: História da 1ª Guerra Mundial | F8: 90%
C9: Francês Moderno | D9: Trabalhos de Casa | E9: Páginas 30 - 41 | F9: 80%
C10: Composição | D10: Ensaio | E10: Exposição argumentativa | F10: 95%
C11: Matemática 1 | D11: Trabalhos de Casa | E11: Páginas 21 & 26 | F11: 80%
C12: Matemática 2 | D12: Trabalhos de Casa | E12: Páginas 15 & 18 | F12: 85%
C13: Matemática 1 | D13: Trabalhos de Casa | E13: Página 34 - 36 | F13: 80%
C14: Matemática 2 | D14: Questionário | F14: 95%

Sheet O Seu Desempenho
B1: O seu Desempenho
C3: Totais
C4: ="Horas: "&SUM(tblAulas[Creditação em Horas]) -> Horas: 24 | D4: =AVERAGE(D7:D31) -> 81% | E4: =AVERAGE(E7:E31) -> 2.71 | F4: =SUM(F7:F31) -> 2.63 | G4: =IFERROR(HLOOKUP(D4,lstMapaDeNotas,2),"") -> B-
C6: Aulas | D6: % | E6: Média | F6: Média ponderada | G6: Letra | H6: Desempenho Global
C7: =Cálculos!C6 -> Francês Moderno | D7: =Cálculos!AL6 -> 83% | E7: =Cálculos!AM6 -> 3.00 | F7: =IFERROR(E7*Definições!D9/SUM(tblAulas[Creditação em Horas]),"") -> 0.38 | G7: =Cálculos!AN6 -> B
C8: =Cálculos!C7 -> Física | D8: =Cálculos!AL7 -> 95% | E8: =Cálculos!AM7 -> 4.00 | F8: =IFERROR(E8*Definições!D10/SUM(tblAulas[Creditação em Horas]),"") -> 0.50 | G8: =Cálculos!AN7 -> A
C9: =Cálculos!C8 -> Matemática 1 | D9: =Cálculos!AL8 -> 80% | E9: =Cálculos!AM8 -> 2.67 | F9: =IFERROR(E9*Definições!D11/SUM(tblAulas[Creditação em Horas]),"") -> 0.45 | G9: =Cálculos!AN8 -> B-
C10: =Cálculos!C9 -> Matemática 2 | D10: =Cálculos!AL9 -> 89% | E10: =Cálculos!AM9 -> 3.33 | F10: =IFERROR(E10*Definições!D12/SUM(tblAulas[Creditação em Horas]),"") -> 0.56 | G10: =Cálculos!AN9 -> B+
C11: =Cálculos!C10 -> Programação Avançada em Java | D11: =Cálculos!AL10 -> 75% | E11: =Cálculos!AM10 -> 2.00 | F11: =IFERROR(E11*Definições!D13/SUM(tblAulas[Creditação em Horas]),"") -> 0.42 | G11: =Cálculos!AN10 -> C
C12: =Cálculos!C11 -> Espanhol | D12: =Cálculos!AL11 -> 50% | E12: =Cálculos!AM11 -> 0.00 | F12: =IFERROR(E12*Definições!D14/SUM(tblAulas[Creditação em Horas]),"") -> 0.00 | G12: =Cálculos!AN11 -> F
C13: =Cálculos!C12 -> Composição | D13: =Cálculos!AL12 -> 95% | E13: =Cálculos!AM12 -> 4.00 | F13: =IFERROR(E13*Definições!D15/SUM(tblAulas[Creditação em Horas]),"") -> 0.33 | G13: =Cálculos!AN12 -> A
C14: =Cálculos!C13 ->  | D14: =Cálculos!AL13 ->  | E14: =Cálculos!AM13 ->  | F14: =IFERROR(E14*Definições!D16/SUM(tblAulas[Creditação em Horas]),"") ->  | G14: =Cálculos!AN13 -> 
C15: =Cálculos!C14 ->  | D15: =Cálculos!AL14 ->  | E15: =Cálculos!AM14 ->  | F15: =IFERROR(E15*Definições!D17/SUM(tblAulas[Creditação em Horas]),"") ->  | G15: =Cálculos!AN14 -> 
C16: =Cálculos!C15 ->  | D16: =Cálculos!AL15 ->  | E16: =Cálculos!AM15 ->  | F16: =IFERROR(E16*Definições!D18/SUM(tblAulas[Creditação em Horas]),"") ->  | G16: =Cálculos!AN15 -> 
C17: =Cálculos!C16 ->  | D17: =Cálculos!AL16 ->  | E17: =Cálculos!AM16 ->  | F17: =IFERROR(E17*Definições!D19/SUM(tblAulas[Creditação em Horas]),"") ->  | G17: =Cálculos!AN16 -> 
C18: =Cálculos!C17 ->  | D18: =Cálculos!AL17 ->  | E18: =Cálculos!AM17 ->  | F18: =IFERROR(E18*Definições!D20/SUM(tblAulas[Creditação em Horas]),"") ->  | G18: =Cálculos!AN17 -> 
C19: =Cálculos!C18 ->  | D19: =Cálculos!AL18 ->  | E19: =Cálculos!AM18 ->  | F19: =IFERROR(E19*Definições!D21/SUM(tblAulas[Creditação em Horas]),"") ->  | G19: =Cálculos!AN18 -> 
C20: =Cálculos!C19 ->  | D20: =Cálculos!AL19 ->  | E20: =Cálculos!AM19 ->  | F20: =IFERROR(E20*Definições!D22/SUM(tblAulas[Creditação em Horas]),"") ->  | G20: =Cálculos!AN19 -> 
C21: =Cálculos!C20 ->  | D21: =Cálculos!AL20 ->  | E21: =Cálculos!AM20 ->  | F21: =IFERROR(E21*Definições!D23/SUM(tblAulas[Creditação em Horas]),"") ->  | G21: =Cálculos!AN20 -> 
C22: =Cálculos!C21 ->  | D22: =Cálculos!AL21 ->  | E22: =Cálculos!AM21 ->  | F22: =IFERROR(E22*Definições!D24/SUM(tblAulas[Creditação em Horas]),"") ->  | G22: =Cálculos!AN21 -> 
C23: =Cálculos!C22 ->  | D23: =Cálculos!AL22 ->  | E23: =Cálculos!AM22 ->  | F23: =IFERROR(E23*Definições!D25/SUM(tblAulas[Creditação em Horas]),"") ->  | G23: =Cálculos!AN22 -> 
C24: =Cálculos!C23 ->  | D24: =Cálculos!AL23 ->  | E24: =Cálculos!AM23 ->  | F24: =IFERROR(E24*Definições!D26/SUM(tblAulas[Creditação em Horas]),"") ->  | G24: =Cálculos!AN23 -> 
C25: =Cálculos!C24 ->  | D25: =Cálculos!AL24 ->  | E25: =Cálculos!AM24 ->  | F25: =IFERROR(E25*Definições!D27/SUM(tblAulas[Creditação em Horas]),"") ->  | G25: =Cálculos!AN24 -> 
C26: =Cálculos!C25 ->  | D26: =Cálculos!AL25 ->  | E26: =Cálculos!AM25 ->  | F26: =IFERROR(E26*Definições!D28/SUM(tblAulas[Creditação em Horas]),"") ->  | G26: =Cálculos!AN25 -> 
C27: =Cálculos!C26 ->  | D27: =Cálculos!AL26 ->  | E27: =Cálculos!AM26 ->  | F27: =IFERROR(E27*Definições!D29/SUM(tblAulas[Creditação em Horas]),"") ->  | G27: =Cálculos!AN26 -> 
C28: =Cálculos!C27 ->  | D28: =Cálculos!AL27 ->  | E28: =Cálculos!AM27 ->  | F28: =IFERROR(E28*Definições!D30/SUM(tblAulas[Creditação em Horas]),"") ->  | G28: =Cálculos!AN27 -> 
C29: =Cálculos!C28 ->  | D29: =Cálculos!AL28 ->  | E29: =Cálculos!AM28 ->  | F29: =IFERROR(E29*Definições!D31/SUM(tblAulas[Creditação em Horas]),"") ->  | G29: =Cálculos!AN28 -> 
C30: =Cálculos!C29 ->  | D30: =Cálculos!AL29 ->  | E30: =Cálculos!AM29 ->  | F30: =IFERROR(E30*Definições!D32/SUM(tblAulas[Creditação em Horas]),"") ->  | G30: =Cálculos!AN29 -> 
C31: =Cálculos!C30 ->  | D31: =Cálculos!AL30 ->  | E31: =Cálculos!AM30 ->  | F31: =IFERROR(E31*Definições!D33/SUM(tblAulas[Creditação em Horas]),"") ->  | G31: =Cálculos!AN30 -> 

Sheet Definições
B1: Definições
C2: Mapeamento de classificações e média
C3: Percentagem | D3: 0% | E3: 60% | F3: 63% | G3: 67% | H3: 70% | I3: 73% | J3: 77% | K3: 80% | L3: 83% | M3: 87% | N3: 90% | O3: 93% | P3: 97%
C4: Nota Qualitativa | D4: F | E4: D- | F4: D | G4: D+ | H4: C- | I4: C | J4: C+ | K4: B- | L4: B | M4: B+ | N4: A- | O4: A | P4: A+
C5: Média | D5: 0 | E5: 0.67 | F5: 1 | G5: 1.33 | H5: 1.67 | I5: 2 | J5: 2.33 | K5: 2.67 | L5: 3 | M5: 3.33 | N5: 3.67 | O5: 4 | P5: 4
C7: Classificações ponderadas de até 25 aulas
C8: Turmas em que está inscrito | D8: Creditação em Horas | E8: Trabalhos de Casa | F8: Ensaio | G8: Questionário | H8: Projeto | I8: Testes Intermédios | J8: Exame Final | K8: Outra | L8: % Total
C9: Francês Moderno | D9: 3.0 | E9: 10% | F9: 15% | G9: 15% | H9: 10% | I9: 20% | J9: 30% | L9: =SUM(tblAulas[[#This Row],[Trabalhos de Casa]:[Outra]]) -> 100%
C10: Física | D10: 3.0 | E10: 15% | F10: 15% | G10: 10% | H10: 10% | I10: 15% | J10: 30% | K10: 5% | L10: =SUM(tblAulas[[#This Row],[Trabalhos de Casa]:[Outra]]) -> 100%
C11: Matemática 1 | D11: 4.0 | E11: 10% | F11: 15% | G11: 15% | H11: 10% | I11: 20% | J11: 30% | L11: =SUM(tblAulas[[#This Row],[Trabalhos de Casa]:[Outra]]) -> 100%
C12: Matemática 2 | D12: 4.0 | E12: 15% | F12: 15% | G12: 10% | H12: 10% | I12: 15% | J12: 30% | K12: 5% | L12: =SUM(tblAulas[[#This Row],[Trabalhos de Casa]:[Outra]]) -> 100%
C13: Programação Avançada em Java | D13: 5.0 | E13: 15% | F13: 15% | G13: 10% | H13: 10% | I13: 20% | J13: 30% | L13: =SUM(tblAulas[[#This Row],[Trabalhos de Casa]:[Outra]]) -> 100%
C14: Espanhol | D14: 3.0 | E14: 10% | F14: 15% | G14: 17% | H14: 13% | I14: 20% | J14: 20% | K14: 5% | L14: =SUM(tblAulas[[#This Row],[Trabalhos de Casa]:[Outra]]) -> 100%
C15: Composição | D15: 2.0 | E15: 15% | F15: 15% | G15: 12% | H15: 15% | I15: 15% | J15: 25% | K15: 3% | L15: =SUM(tblAulas[[#This Row],[Trabalhos de Casa]:[Outra]]) -> 100%

Sheet Cálculos (hidden)
B1: Cálculos
C2: Esta folha de cálculo fornece cálculos das suas notas e média e deverá permanecer oculta. Quaisquer alterações a esta folha podem original erros.
C4: Lista de Aulas Atual | D4: Classificações (máximo de 1) | AC4: Cálculo da Nota
C5: Aula | D5: 1 | E5: 2 | F5: 3 | G5: 4 | H5: 5 | I5: 6 | J5: 7 | K5: 8 | L5: 9 | M5: 10 | N5: 11 | O5: 12 | P5: 13 | Q5: 14 | R5: 15 | S5: 16 | T5: 17 | U5: 18 | V5: 19 | W5: 20 | X5: 21 | Y5: 22 | Z5: 23 | AA5: 24 | AB5: 25 | AC5: =tblAulas[[#Headers],[Trabalhos de Casa]] -> Trabalhos de Casa | AD5: =tblAulas[[#Headers],[Ensaio]] -> Ensaio | AE5: =tblAulas[[#Headers],[Questionário]] -> Questionário | AF5: =tblAulas[[#Headers],[Projeto]] -> Projeto | AG5: =tblAulas[[#Headers],[Testes Intermédios]] -> Testes Intermédios | AH5: =tblAulas[[#Headers],[Exame Final]] -> Exame Final | AI5: =tblAulas[[#Headers],[Outra]] -> Outra | AJ5: Total | AK5: Total Pontos Possíveis | AL5: Total % | AM5: Nota Quantitativa | AN5: Nota Qualitativa
C6: =IF(Definições!C9="","",Definições!C9) -> Francês Moderno | D6: =IFERROR(INDEX(tblPontuaçõesDeAula[],MATCH($C6:$C30&D$5:AB$5,Cálculos!$C$33:$C$657,0),4),"") -> 80% | E6: 90% | F6: 80% | AC6: =IFERROR(AVERAGEIFS(tblPontuaçõesDeAula[Classificação],tblPontuaçõesDeAula[Aula],Cálculos!$C6,tblPontuaçõesDeAula[Tipo],Cálculos!AC$5)*Definições!E9,"") -> 0.08333333333 | AD6: =IFERROR(AVERAGEIFS(tblPontuaçõesDeAula[Classificação],tblPontuaçõesDeAula[Aula],Cálculos!$C6,tblPontuaçõesDeAula[Tipo],Cálculos!AD$5)*Definições!F9,"") ->  | AE6: =IFERROR(AVERAGEIFS(tblPontuaçõesDeAula[Classificação],tblPontuaçõesDeAula[Aula],Cálculos!$C6,tblPontuaçõesDeAula[Tipo],Cálculos!AE$5)*Definições!G9,"") ->  | AF6: =IFERROR(AVERAGEIFS(tblPontuaçõesDeAula[Classificação],tblPontuaçõesDeAula[Aula],Cálculos!$C6,tblPontuaçõesDeAula[Tipo],Cálculos!AF$5)*Definições!H9,"") ->  | AG6: =IFERROR(AVERAGEIFS(tblPontuaçõesDeAula[Classificação],tblPontuaçõesDeAula[Aula],Cálculos!$C6,tblPontuaçõesDeAula[Tipo],Cálculos!AG$5)*Definições!I9,"") ->  | AH6: =IFERROR(AVERAGEIFS(tblPontuaçõesDeAula[Classificação],tblPontuaçõesDeAula[Aula],Cálculos!$C6,tblPontuaçõesDeAula[Tipo],Cálculos!AH$5)*Definições!J9,"") ->  | AI6: =IFERROR(AVERAGEIFS(tblPontuaçõesDeAula[Classificação],tblPontuaçõesDeAula[Aula],Cálculos!$C6,tblPontuaçõesDeAula[Tipo],Cálculos!AI$5)*Definições!K9,"") ->  | AJ6: =SUM(AC6:AI6) -> 0.08333333333 | AK6: =SUMIFS(Definições!E9:K9,Cálculos!AC6:AI6,">0") -> 0.1 | AL6: =IFERROR(AJ6/AK6,"") -> 83% | AM6: =IFERROR(HLOOKUP(AL6,lstMapaDeNotas,3),"") -> 3 | AN6: =IFERROR(HLOOKUP(AL6,lstMapaDeNotas,2),"") -> B
C7: =IF(Definições!C10="","",Definições!C10) -> Física | D7: 95% | AC7: =IFERROR(AVERAGEIFS(tblPontuaçõesDeAula[Classificação],tblPontuaçõesDeAula[Aula],Cálculos!$C7,tblPontuaçõesDeAula[Tipo],Cálculos!AC$5)*Definições!E10,"") -> 0.1425 | AD7: =IFERROR(AVERAGEIFS(tblPontuaçõesDeAula[Classificação],tblPontuaçõesDeAula[Aula],Cálculos!$C7,tblPontuaçõesDeAula[Tipo],Cálculos!AD$5)*Definições!F10,"") ->  | AE7: =IFERROR(AVERAGEIFS(tblPontuaçõesDeAula[Classificação],tblPontuaçõesDeAula[Aula],Cálculos!$C7,tblPontuaçõesDeAula[Tipo],Cálculos!AE$5)*Definições!G10,"") ->  | AF7: =IFERROR(AVERAGEIFS(tblPontuaçõesDeAula[Classificação],tblPontuaçõesDeAula[Aula],Cálculos!$C7,tblPontuaçõesDeAula[Tipo],Cálculos!AF$5)*Definições!H10,"") ->  | AG7: =IFERROR(AVERAGEIFS(tblPontuaçõesDeAula[Classificação],tblPontuaçõesDeAula[Aula],Cálculos!$C7,tblPontuaçõesDeAula[Tipo],Cálculos!AG$5)*Definições!I10,"") ->  | AH7: =IFERROR(AVERAGEIFS(tblPontuaçõesDeAula[Classificação],tblPontuaçõesDeAula[Aula],Cálculos!$C7,tblPontuaçõesDeAula[Tipo],Cálculos!AH$5)*Definições!J10,"") ->  | AI7: =IFERROR(AVERAGEIFS(tblPontuaçõesDeAula[Classificação],tblPontuaçõesDeAula[Aula],Cálculos!$C7,tblPontuaçõesDeAula[Tipo],Cálculos!AI$5)*Definições!K10,"") ->  | AJ7: =SUM(AC7:AI7) -> 0.1425 | AK7: =SUMIFS(Definições!E10:K10,Cálculos!AC7:AI7,">0") -> 0.15 | AL7: =IFERROR(AJ7/AK7,"") -> 95% | AM7: 4 | AN7: A
C8: =IF(Definições!C11="","",Definições!C11) -> Matemática 1 | D8: 80% | E8: 80% | AC8: =IFERROR(AVERAGEIFS(tblPontuaçõesDeAula[Classificação],tblPontuaçõesDeAula[Aula],Cálculos!$C8,tblPontuaçõesDeAula[Tipo],Cálculos!AC$5)*Definições!E11,"") -> 0.08 | AD8: =IFERROR(AVERAGEIFS(tblPontuaçõesDeAula[Classificação],tblPontuaçõesDeAula[Aula],Cálculos!$C8,tblPontuaçõesDeAula[Tipo],Cálculos!AD$5)*Definições!F11,"") ->  | AE8: =IFERROR(AVERAGEIFS(tblPontuaçõesDeAula[Classificação],tblPontuaçõesDeAula[Aula],Cálculos!$C8,tblPontuaçõesDeAula[Tipo],Cálculos!AE$5)*Definições!G11,"") ->  | AF8: =IFERROR(AVERAGEIFS(tblPontuaçõesDeAula[Classificação],tblPontuaçõesDeAula[Aula],Cálculos!$C8,tblPontuaçõesDeAula[Tipo],Cálculos!AF$5)*Definições!H11,"") ->  | AG8: =IFERROR(AVERAGEIFS(tblPontuaçõesDeAula[Classificação],tblPontuaçõesDeAula[Aula],Cálculos!$C8,tblPontuaçõesDeAula[Tipo],Cálculos!AG$5)*Definições!I11,"") ->  | AH8: =IFERROR(AVERAGEIFS(tblPontuaçõesDeAula[Classificação],tblPontuaçõesDeAula[Aula],Cálculos!$C8,tblPontuaçõesDeAula[Tipo],Cálculos!AH$5)*Definições!J11,"") ->  | AI8: =IFERROR(AVERAGEIFS(tblPontuaçõesDeAula[Classificação],tblPontuaçõesDeAula[Aula],Cálculos!$C8,tblPontuaçõesDeAula[Tipo],Cálculos!AI$5)*Definições!K11,"") ->  | AJ8: 0.08 | AK8: =SUMIFS(Definições!E11:K11,Cálculos!AC8:AI8,">0") -> 0.1 | AL8: 80% | AM8: 2.67 | AN8: B-
C9: =IF(Definições!C12="","",Definições!C12) -> Matemática 2 | D9: 85% | E9: 95% | AC9: =IFERROR(AVERAGEIFS(tblPontuaçõesDeAula[Classificação],tblPontuaçõesDeAula[Aula],Cálculos!$C9,tblPontuaçõesDeAula[Tipo],Cálculos!AC$5)*Definições!E12,"") -> 0.1275 | AD9: =IFERROR(AVERAGEIFS(tblPontuaçõesDeAula[Classificação],tblPontuaçõesDeAula[Aula],Cálculos!$C9,tblPontuaçõesDeAula[Tipo],Cálculos!AD$5)*Definições!F12,"") ->  | AE9: =IFERROR(AVERAGEIFS(tblPontuaçõesDeAula[Classificação],tblPontuaçõesDeAula[Aula],Cálculos!$C9,tblPontuaçõesDeAula[Tipo],Cálculos!AE$5)*Definições!G12,"") -> 0.095 | AF9: =IFERROR(AVERAGEIFS(tblPontuaçõesDeAula[Classificação],tblPontuaçõesDeAula[Aula],Cálculos!$C9,tblPontuaçõesDeAula[Tipo],Cálculos!AF$5)*Definições!H12,"") ->  | AG9: =IFERROR(AVERAGEIFS(tblPontuaçõesDeAula[Classificação],tblPontuaçõesDeAula[Aula],Cálculos!$C9,tblPontuaçõesDeAula[Tipo],Cálculos!AG$5)*Definições!I12,"") ->  | AH9: =IFERROR(AVERAGEIFS(tblPontuaçõesDeAula[Classificação],tblPontuaçõesDeAula[Aula],Cálculos!$C9,tblPontuaçõesDeAula[Tipo],Cálculos!AH$5)*Definições!J12,"") ->  | AI9: =IFERROR(AVERAGEIFS(tblPontuaçõesDeAula[Classificação],tblPontuaçõesDeAula[Aula],Cálculos!$C9,tblPontuaçõesDeAula[Tipo],Cálculos!AI$5)*Definições!K12,"") ->  | AJ9: 0.2225 | AK9: =SUMIFS(Definições!E12:K12,Cálculos!AC9:AI9,">0") -> 0.25 | AL9: 89% | AM9: 3.33 | AN9: B+
C10: =IF(Definições!C13="","",Definições!C13) -> Programação Avançada em Java | D10: 75% | AC10: =IFERROR(AVERAGEIFS(tblPontuaçõesDeAula[Classificação],tblPontuaçõesDeAula[Aula],Cálculos!$C10,tblPontuaçõesDeAula[Tipo],Cálculos!AC$5)*Definições!E13,"") ->  | AD10: =IFERROR(AVERAGEIFS(tblPontuaçõesDeAula[Classificação],tblPontuaçõesDeAula[Aula],Cálculos!$C10,tblPontuaçõesDeAula[Tipo],Cálculos!AD$5)*Definições!F13,"") ->  | AE10: =IFERROR(AVERAGEIFS(tblPontuaçõesDeAula[Classificação],tblPontuaçõesDeAula[Aula],Cálculos!$C10,tblPontuaçõesDeAula[Tipo],Cálculos!AE$5)*Definições!G13,"") ->  | AF10: =IFERROR(AVERAGEIFS(tblPontuaçõesDeAula[Classificação],tblPontuaçõesDeAula[Aula],Cálculos!$C10,tblPontuaçõesDeAula[Tipo],Cálculos!AF$5)*Definições!H13,"") ->  | AG10: =IFERROR(AVERAGEIFS(tblPontuaçõesDeAula[Classificação],tblPontuaçõesDeAula[Aula],Cálculos!$C10,tblPontuaçõesDeAula[Tipo],Cálculos!AG$5)*Definições!I13,"") -> 0.15 | AH10: =IFERROR(AVERAGEIFS(tblPontuaçõesDeAula[Classificação],tblPontuaçõesDeAula[Aula],Cálculos!$C10,tblPontuaçõesDeAula[Tipo],Cálculos!AH$5)*Definições!J13,"") ->  | AI10: =IFERROR(AVERAGEIFS(tblPontuaçõesDeAula[Classificação],tblPontuaçõesDeAula[Aula],Cálculos!$C10,tblPontuaçõesDeAula[Tipo],Cálculos!AI$5)*Definições!K13,"") ->  | AJ10: 0.15 | AK10: =SUMIFS(Definições!E13:K13,Cálculos!AC10:AI10,">0") -> 0.2 | AL10: 75% | AM10: 2 | AN10: C
C11: =IF(Definições!C14="","",Definições!C14) -> Espanhol | D11: 50% | AC11: =IFERROR(AVERAGEIFS(tblPontuaçõesDeAula[Classificação],tblPontuaçõesDeAula[Aula],Cálculos!$C11,tblPontuaçõesDeAula[Tipo],Cálculos!AC$5)*Definições!E14,"") -> 0.05 | AD11: =IFERROR(AVERAGEIFS(tblPontuaçõesDeAula[Classificação],tblPontuaçõesDeAula[Aula],Cálculos!$C11,tblPontuaçõesDeAula[Tipo],Cálculos!AD$5)*Definições!F14,"") ->  | AE11: =IFERROR(AVERAGEIFS(tblPontuaçõesDeAula[Classificação],tblPontuaçõesDeAula[Aula],Cálculos!$C11,tblPontuaçõesDeAula[Tipo],Cálculos!AE$5)*Definições!G14,"") ->  | AF11: =IFERROR(AVERAGEIFS(tblPontuaçõesDeAula[Classificação],tblPontuaçõesDeAula[Aula],Cálculos!$C11,tblPontuaçõesDeAula[Tipo],Cálculos!AF$5)*Definições!H14,"") ->  | AG11: =IFERROR(AVERAGEIFS(tblPontuaçõesDeAula[Classificação],tblPontuaçõesDeAula[Aula],Cálculos!$C11,tblPontuaçõesDeAula[Tipo],Cálculos!AG$5)*Definições!I14,"") ->  | AH11: =IFERROR(AVERAGEIFS(tblPontuaçõesDeAula[Classificação],tblPontuaçõesDeAula[Aula],Cálculos!$C11,tblPontuaçõesDeAula[Tipo],Cálculos!AH$5)*Definições!J14,"") ->  | AI11: =IFERROR(AVERAGEIFS(tblPontuaçõesDeAula[Classificação],tblPontuaçõesDeAula[Aula],Cálculos!$C11,tblPontuaçõesDeAula[Tipo],Cálculos!AI$5)*Definições!K14,"") ->  | AJ11: 0.05 | AK11: =SUMIFS(Definições!E14:K14,Cálculos!AC11:AI11,">0") -> 0.1 | AL11: 50% | AM11: 0 | AN11: F
C12: =IF(Definições!C15="","",Definições!C15) -> Composição | D12: 95% | AC12: =IFERROR(AVERAGEIFS(tblPontuaçõesDeAula[Classificação],tblPontuaçõesDeAula[Aula],Cálculos!$C12,tblPontuaçõesDeAula[Tipo],Cálculos!AC$5)*Definições!E15,"") ->  | AD12: =IFERROR(AVERAGEIFS(tblPontuaçõesDeAula[Classificação],tblPontuaçõesDeAula[Aula],Cálculos!$C12,tblPontuaçõesDeAula[Tipo],Cálculos!AD$5)*Definições!F15,"") -> 0.1425 | AE12: =IFERROR(AVERAGEIFS(tblPontuaçõesDeAula[Classificação],tblPontuaçõesDeAula[Aula],Cálculos!$C12,tblPontuaçõesDeAula[Tipo],Cálculos!AE$5)*Definições!G15,"") ->  | AF12: =IFERROR(AVERAGEIFS(tblPontuaçõesDeAula[Classificação],tblPontuaçõesDeAula[Aula],Cálculos!$C12,tblPontuaçõesDeAula[Tipo],Cálculos!AF$5)*Definições!H15,"") ->  | AG12: =IFERROR(AVERAGEIFS(tblPontuaçõesDeAula[Classificação],tblPontuaçõesDeAula[Aula],Cálculos!$C12,tblPontuaçõesDeAula[Tipo],Cálculos!AG$5)*Definições!I15,"") ->  | AH12: =IFERROR(AVERAGEIFS(tblPontuaçõesDeAula[Classificação],tblPontuaçõesDeAula[Aula],Cálculos!$C12,tblPontuaçõesDeAula[Tipo],Cálculos!AH$5)*Definições!J15,"") ->  | AI12: =IFERROR(AVERAGEIFS(tblPontuaçõesDeAula[Classificação],tblPontuaçõesDeAula[Aula],Cálculos!$C12,tblPontuaçõesDeAula[Tipo],Cálculos!AI$5)*Definições!K15,"") ->  | AJ12: 0.1425 | AK12: =SUMIFS(Definições!E15:K15,Cálculos!AC12:AI12,">0") -> 0.15 | AL12: 95% | AM12: 4 | AN12: A
C13: =IF(Definições!C16="","",Definições!C16) ->  | AC13: =IFERROR(AVERAGEIFS(tblPontuaçõesDeAula[Classificação],tblPontuaçõesDeAula[Aula],Cálculos!$C13,tblPontuaçõesDeAula[Tipo],Cálculos!AC$5)*Definições!E16,"") ->  | AD13: =IFERROR(AVERAGEIFS(tblPontuaçõesDeAula[Classificação],tblPontuaçõesDeAula[Aula],Cálculos!$C13,tblPontuaçõesDeAula[Tipo],Cálculos!AD$5)*Definições!F16,"") ->  | AE13: =IFERROR(AVERAGEIFS(tblPontuaçõesDeAula[Classificação],tblPontuaçõesDeAula[Aula],Cálculos!$C13,tblPontuaçõesDeAula[Tipo],Cálculos!AE$5)*Definições!G16,"") ->  | AF13: =IFERROR(AVERAGEIFS(tblPontuaçõesDeAula[Classificação],tblPontuaçõesDeAula[Aula],Cálculos!$C13,tblPontuaçõesDeAula[Tipo],Cálculos!AF$5)*Definições!H16,"") ->  | AG13: =IFERROR(AVERAGEIFS(tblPontuaçõesDeAula[Classificação],tblPontuaçõesDeAula[Aula],Cálculos!$C13,tblPontuaçõesDeAula[Tipo],Cálculos!AG$5)*Definições!I16,"") ->  | AH13: =IFERROR(AVERAGEIFS(tblPontuaçõesDeAula[Classificação],tblPontuaçõesDeAula[Aula],Cálculos!$C13,tblPontuaçõesDeAula[Tipo],Cálculos!AH$5)*Definições!J16,"") ->  | AI13: =IFERROR(AVERAGEIFS(tblPontuaçõesDeAula[Classificação],tblPontuaçõesDeAula[Aula],Cálculos!$C13,tblPontuaçõesDeAula[Tipo],Cálculos!AI$5)*Definições!K16,"") ->  | AJ13: =SUM(AC13:AI13) -> 0 | AK13: =SUMIFS(Definições!E16:K16,Cálculos!AC13:AI13,">0") -> 0 | AL13: =IFERROR(AJ13/AK13,"") -> 
C14: =IF(Definições!C17="","",Definições!C17) ->  | AC14: =IFERROR(AVERAGEIFS(tblPontuaçõesDeAula[Classificação],tblPontuaçõesDeAula[Aula],Cálculos!$C14,tblPontuaçõesDeAula[Tipo],Cálculos!AC$5)*Definições!E17,"") ->  | AD14: =IFERROR(AVERAGEIFS(tblPontuaçõesDeAula[Classificação],tblPontuaçõesDeAula[Aula],Cálculos!$C14,tblPontuaçõesDeAula[Tipo],Cálculos!AD$5)*Definições!F17,"") ->  | AE14: =IFERROR(AVERAGEIFS(tblPontuaçõesDeAula[Classificação],tblPontuaçõesDeAula[Aula],Cálculos!$C14,tblPontuaçõesDeAula[Tipo],Cálculos!AE$5)*Definições!G17,"") ->  | AF14: =IFERROR(AVERAGEIFS(tblPontuaçõesDeAula[Classificação],tblPontuaçõesDeAula[Aula],Cálculos!$C14,tblPontuaçõesDeAula[Tipo],Cálculos!AF$5)*Definições!H17,"") ->  | AG14: =IFERROR(AVERAGEIFS(tblPontuaçõesDeAula[Classificação],tblPontuaçõesDeAula[Aula],Cálculos!$C14,tblPontuaçõesDeAula[Tipo],Cálculos!AG$5)*Definições!I17,"") ->  | AH14: =IFERROR(AVERAGEIFS(tblPontuaçõesDeAula[Classificação],tblPontuaçõesDeAula[Aula],Cálculos!$C14,tblPontuaçõesDeAula[Tipo],Cálculos!AH$5)*Definições!J17,"") ->  | AI14: =IFERROR(AVERAGEIFS(tblPontuaçõesDeAula[Classificação],tblPontuaçõesDeAula[Aula],Cálculos!$C14,tblPontuaçõesDeAula[Tipo],Cálculos!AI$5)*Definições!K17,"") ->  | AJ14: 0 | AK14: =SUMIFS(Definições!E17:K17,Cálculos!AC14:AI14,">0") -> 0
C15: =IF(Definições!C18="","",Definições!C18) ->  | AC15: =IFERROR(AVERAGEIFS(tblPontuaçõesDeAula[Classificação],tblPontuaçõesDeAula[Aula],Cálculos!$C15,tblPontuaçõesDeAula[Tipo],Cálculos!AC$5)*Definições!E18,"") ->  | AD15: =IFERROR(AVERAGEIFS(tblPontuaçõesDeAula[Classificação],tblPontuaçõesDeAula[Aula],Cálculos!$C15,tblPontuaçõesDeAula[Tipo],Cálculos!AD$5)*Definições!F18,"") ->  | AE15: =IFERROR(AVERAGEIFS(tblPontuaçõesDeAula[Classificação],tblPontuaçõesDeAula[Aula],Cálculos!$C15,tblPontuaçõesDeAula[Tipo],Cálculos!AE$5)*Definições!G18,"") ->  | AF15: =IFERROR(AVERAGEIFS(tblPontuaçõesDeAula[Classificação],tblPontuaçõesDeAula[Aula],Cálculos!$C15,tblPontuaçõesDeAula[Tipo],Cálculos!AF$5)*Definições!H18,"") ->  | AG15: =IFERROR(AVERAGEIFS(tblPontuaçõesDeAula[Classificação],tblPontuaçõesDeAula[Aula],Cálculos!$C15,tblPontuaçõesDeAula[Tipo],Cálculos!AG$5)*Definições!I18,"") ->  | AH15: =IFERROR(AVERAGEIFS(tblPontuaçõesDeAula[Classificação],tblPontuaçõesDeAula[Aula],Cálculos!$C15,tblPontuaçõesDeAula[Tipo],Cálculos!AH$5)*Definições!J18,"") ->  | AI15: =IFERROR(AVERAGEIFS(tblPontuaçõesDeAula[Classificação],tblPontuaçõesDeAula[Aula],Cálculos!$C15,tblPontuaçõesDeAula[Tipo],Cálculos!AI$5)*Definições!K18,"") ->  | AJ15: 0 | AK15: =SUMIFS(Definições!E18:K18,Cálculos!AC15:AI15,">0") -> 0
C16: =IF(Definições!C19="","",Definições!C19) ->  | AC16: =IFERROR(AVERAGEIFS(tblPontuaçõesDeAula[Classificação],tblPontuaçõesDeAula[Aula],Cálculos!$C16,tblPontuaçõesDeAula[Tipo],Cálculos!AC$5)*Definições!E19,"") ->  | AD16: =IFERROR(AVERAGEIFS(tblPontuaçõesDeAula[Classificação],tblPontuaçõesDeAula[Aula],Cálculos!$C16,tblPontuaçõesDeAula[Tipo],Cálculos!AD$5)*Definições!F19,"") ->  | AE16: =IFERROR(AVERAGEIFS(tblPontuaçõesDeAula[Classificação],tblPontuaçõesDeAula[Aula],Cálculos!$C16,tblPontuaçõesDeAula[Tipo],Cálculos!AE$5)*Definições!G19,"") ->  | AF16: =IFERROR(AVERAGEIFS(tblPontuaçõesDeAula[Classificação],tblPontuaçõesDeAula[Aula],Cálculos!$C16,tblPontuaçõesDeAula[Tipo],Cálculos!AF$5)*Definições!H19,"") ->  | AG16: =IFERROR(AVERAGEIFS(tblPontuaçõesDeAula[Classificação],tblPontuaçõesDeAula[Aula],Cálculos!$C16,tblPontuaçõesDeAula[Tipo],Cálculos!AG$5)*Definições!I19,"") ->  | AH16: =IFERROR(AVERAGEIFS(tblPontuaçõesDeAula[Classificação],tblPontuaçõesDeAula[Aula],Cálculos!$C16,tblPontuaçõesDeAula[Tipo],Cálculos!AH$5)*Definições!J19,"") ->  | AI16: =IFERROR(AVERAGEIFS(tblPontuaçõesDeAula[Classificação],tblPontuaçõesDeAula[Aula],Cálculos!$C16,tblPontuaçõesDeAula[Tipo],Cálculos!AI$5)*Definições!K19,"") ->  | AJ16: 0 | AK16: =SUMIFS(Definições!E19:K19,Cálculos!AC16:AI16,">0") -> 0
C17: =IF(Definições!C20="","",Definições!C20) ->  | AC17: =IFERROR(AVERAGEIFS(tblPontuaçõesDeAula[Classificação],tblPontuaçõesDeAula[Aula],Cálculos!$C17,tblPontuaçõesDeAula[Tipo],Cálculos!AC$5)*Definições!E20,"") ->  | AD17: =IFERROR(AVERAGEIFS(tblPontuaçõesDeAula[Classificação],tblPontuaçõesDeAula[Aula],Cálculos!$C17,tblPontuaçõesDeAula[Tipo],Cálculos!AD$5)*Definições!F20,"") ->  | AE17: =IFERROR(AVERAGEIFS(tblPontuaçõesDeAula[Classificação],tblPontuaçõesDeAula[Aula],Cálculos!$C17,tblPontuaçõesDeAula[Tipo],Cálculos!AE$5)*Definições!G20,"") ->  | AF17: =IFERROR(AVERAGEIFS(tblPontuaçõesDeAula[Classificação],tblPontuaçõesDeAula[Aula],Cálculos!$C17,tblPontuaçõesDeAula[Tipo],Cálculos!AF$5)*Definições!H20,"") ->  | AG17: =IFERROR(AVERAGEIFS(tblPontuaçõesDeAula[Classificação],tblPontuaçõesDeAula[Aula],Cálculos!$C17,tblPontuaçõesDeAula[Tipo],Cálculos!AG$5)*Definições!I20,"") ->  | AH17: =IFERROR(AVERAGEIFS(tblPontuaçõesDeAula[Classificação],tblPontuaçõesDeAula[Aula],Cálculos!$C17,tblPontuaçõesDeAula[Tipo],Cálculos!AH$5)*Definições!J20,"") ->  | AI17: =IFERROR(AVERAGEIFS(tblPontuaçõesDeAula[Classificação],tblPontuaçõesDeAula[Aula],Cálculos!$C17,tblPontuaçõesDeAula[Tipo],Cálculos!AI$5)*Definições!K20,"") ->  | AJ17: 0 | AK17: =SUMIFS(Definições!E20:K20,Cálculos!AC17:AI17,">0") -> 0
C18: =IF(Definições!C21="","",Definições!C21) ->  | AC18: =IFERROR(AVERAGEIFS(tblPontuaçõesDeAula[Classificação],tblPontuaçõesDeAula[Aula],Cálculos!$C18,tblPontuaçõesDeAula[Tipo],Cálculos!AC$5)*Definições!E21,"") ->  | AD18: =IFERROR(AVERAGEIFS(tblPontuaçõesDeAula[Classificação],tblPontuaçõesDeAula[Aula],Cálculos!$C18,tblPontuaçõesDeAula[Tipo],Cálculos!AD$5)*Definições!F21,"") ->  | AE18: =IFERROR(AVERAGEIFS(tblPontuaçõesDeAula[Classificação],tblPontuaçõesDeAula[Aula],Cálculos!$C18,tblPontuaçõesDeAula[Tipo],Cálculos!AE$5)*Definições!G21,"") ->  | AF18: =IFERROR(AVERAGEIFS(tblPontuaçõesDeAula[Classificação],tblPontuaçõesDeAula[Aula],Cálculos!$C18,tblPontuaçõesDeAula[Tipo],Cálculos!AF$5)*Definições!H21,"") ->  | AG18: =IFERROR(AVERAGEIFS(tblPontuaçõesDeAula[Classificação],tblPontuaçõesDeAula[Aula],Cálculos!$C18,tblPontuaçõesDeAula[Tipo],Cálculos!AG$5)*Definições!I21,"") ->  | AH18: =IFERROR(AVERAGEIFS(tblPontuaçõesDeAula[Classificação],tblPontuaçõesDeAula[Aula],Cálculos!$C18,tblPontuaçõesDeAula[Tipo],Cálculos!AH$5)*Definições!J21,"") ->  | AI18: =IFERROR(AVERAGEIFS(tblPontuaçõesDeAula[Classificação],tblPontuaçõesDeAula[Aula],Cálculos!$C18,tblPontuaçõesDeAula[Tipo],Cálculos!AI$5)*Definições!K21,"") ->  | AJ18: 0 | AK18: =SUMIFS(Definições!E21:K21,Cálculos!AC18:AI18,">0") -> 0
C19: =IF(Definições!C22="","",Definições!C22) ->  | AC19: =IFERROR(AVERAGEIFS(tblPontuaçõesDeAula[Classificação],tblPontuaçõesDeAula[Aula],Cálculos!$C19,tblPontuaçõesDeAula[Tipo],Cálculos!AC$5)*Definições!E22,"") ->  | AD19: =IFERROR(AVERAGEIFS(tblPontuaçõesDeAula[Classificação],tblPontuaçõesDeAula[Aula],Cálculos!$C19,tblPontuaçõesDeAula[Tipo],Cálculos!AD$5)*Definições!F22,"") ->  | AE19: =IFERROR(AVERAGEIFS(tblPontuaçõesDeAula[Classificação],tblPontuaçõesDeAula[Aula],Cálculos!$C19,tblPontuaçõesDeAula[Tipo],Cálculos!AE$5)*Definições!G22,"") ->  | AF19: =IFERROR(AVERAGEIFS(tblPontuaçõesDeAula[Classificação],tblPontuaçõesDeAula[Aula],Cálculos!$C19,tblPontuaçõesDeAula[Tipo],Cálculos!AF$5)*Definições!H22,"") ->  | AG19: =IFERROR(AVERAGEIFS(tblPontuaçõesDeAula[Classificação],tblPontuaçõesDeAula[Aula],Cálculos!$C19,tblPontuaçõesDeAula[Tipo],Cálculos!AG$5)*Definições!I22,"") ->  | AH19: =IFERROR(AVERAGEIFS(tblPontuaçõesDeAula[Classificação],tblPontuaçõesDeAula[Aula],Cálculos!$C19,tblPontuaçõesDeAula[Tipo],Cálculos!AH$5)*Definições!J22,"") ->  | AI19: =IFERROR(AVERAGEIFS(tblPontuaçõesDeAula[Classificação],tblPontuaçõesDeAula[Aula],Cálculos!$C19,tblPontuaçõesDeAula[Tipo],Cálculos!AI$5)*Definições!K22,"") ->  | AJ19: 0 | AK19: =SUMIFS(Definições!E22:K22,Cálculos!AC19:AI19,">0") -> 0
C20: =IF(Definições!C23="","",Definições!C23) ->  | AC20: =IFERROR(AVERAGEIFS(tblPontuaçõesDeAula[Classificação],tblPontuaçõesDeAula[Aula],Cálculos!$C20,tblPontuaçõesDeAula[Tipo],Cálculos!AC$5)*Definições!E23,"") ->  | AD20: =IFERROR(AVERAGEIFS(tblPontuaçõesDeAula[Classificação],tblPontuaçõesDeAula[Aula],Cálculos!$C20,tblPontuaçõesDeAula[Tipo],Cálculos!AD$5)*Definições!F23,"") ->  | AE20: =IFERROR(AVERAGEIFS(tblPontuaçõesDeAula[Classificação],tblPontuaçõesDeAula[Aula],Cálculos!$C20,tblPontuaçõesDeAula[Tipo],Cálculos!AE$5)*Definições!G23,"") ->  | AF20: =IFERROR(AVERAGEIFS(tblPontuaçõesDeAula[Classificação],tblPontuaçõesDeAula[Aula],Cálculos!$C20,tblPontuaçõesDeAula[Tipo],Cálculos!AF$5)*Definições!H23,"") ->  | AG20: =IFERROR(AVERAGEIFS(tblPontuaçõesDeAula[Classificação],tblPontuaçõesDeAula[Aula],Cálculos!$C20,tblPontuaçõesDeAula[Tipo],Cálculos!AG$5)*Definições!I23,"") ->  | AH20: =IFERROR(AVERAGEIFS(tblPontuaçõesDeAula[Classificação],tblPontuaçõesDeAula[Aula],Cálculos!$C20,tblPontuaçõesDeAula[Tipo],Cálculos!AH$5)*Definições!J23,"") ->  | AI20: =IFERROR(AVERAGEIFS(tblPontuaçõesDeAula[Classificação],tblPontuaçõesDeAula[Aula],Cálculos!$C20,tblPontuaçõesDeAula[Tipo],Cálculos!AI$5)*Definições!K23,"") ->  | AJ20: 0 | AK20: =SUMIFS(Definições!E23:K23,Cálculos!AC20:AI20,">0") -> 0
C21: =IF(Definições!C24="","",Definições!C24) ->  | AC21: =IFERROR(AVERAGEIFS(tblPontuaçõesDeAula[Classificação],tblPontuaçõesDeAula[Aula],Cálculos!$C21,tblPontuaçõesDeAula[Tipo],Cálculos!AC$5)*Definições!E24,"") ->  | AD21: =IFERROR(AVERAGEIFS(tblPontuaçõesDeAula[Classificação],tblPontuaçõesDeAula[Aula],Cálculos!$C21,tblPontuaçõesDeAula[Tipo],Cálculos!AD$5)*Definições!F24,"") ->  | AE21: =IFERROR(AVERAGEIFS(tblPontuaçõesDeAula[Classificação],tblPontuaçõesDeAula[Aula],Cálculos!$C21,tblPontuaçõesDeAula[Tipo],Cálculos!AE$5)*Definições!G24,"") ->  | AF21: =IFERROR(AVERAGEIFS(tblPontuaçõesDeAula[Classificação],tblPontuaçõesDeAula[Aula],Cálculos!$C21,tblPontuaçõesDeAula[Tipo],Cálculos!AF$5)*Definições!H24,"") ->  | AG21: =IFERROR(AVERAGEIFS(tblPontuaçõesDeAula[Classificação],tblPontuaçõesDeAula[Aula],Cálculos!$C21,tblPontuaçõesDeAula[Tipo],Cálculos!AG$5)*Definições!I24,"") ->  | AH21: =IFERROR(AVERAGEIFS(tblPontuaçõesDeAula[Classificação],tblPontuaçõesDeAula[Aula],Cálculos!$C21,tblPontuaçõesDeAula[Tipo],Cálculos!AH$5)*Definições!J24,"") ->  | AI21: =IFERROR(AVERAGEIFS(tblPontuaçõesDeAula[Classificação],tblPontuaçõesDeAula[Aula],Cálculos!$C21,tblPontuaçõesDeAula[Tipo],Cálculos!AI$5)*Definições!K24,"") ->  | AJ21: 0 | AK21: =SUMIFS(Definições!E24:K24,Cálculos!AC21:AI21,">0") -> 0
C22: =IF(Definições!C25="","",Definições!C25) ->  | AC22: =IFERROR(AVERAGEIFS(tblPontuaçõesDeAula[Classificação],tblPontuaçõesDeAula[Aula],Cálculos!$C22,tblPontuaçõesDeAula[Tipo],Cálculos!AC$5)*Definições!E25,"") ->  | AD22: =IFERROR(AVERAGEIFS(tblPontuaçõesDeAula[Classificação],tblPontuaçõesDeAula[Aula],Cálculos!$C22,tblPontuaçõesDeAula[Tipo],Cálculos!AD$5)*Definições!F25,"") ->  | AE22: =IFERROR(AVERAGEIFS(tblPontuaçõesDeAula[Classificação],tblPontuaçõesDeAula[Aula],Cálculos!$C22,tblPontuaçõesDeAula[Tipo],Cálculos!AE$5)*Definições!G25,"") ->  | AF22: =IFERROR(AVERAGEIFS(tblPontuaçõesDeAula[Classificação],tblPontuaçõesDeAula[Aula],Cálculos!$C22,tblPontuaçõesDeAula[Tipo],Cálculos!AF$5)*Definições!H25,"") ->  | AG22: =IFERROR(AVERAGEIFS(tblPontuaçõesDeAula[Classificação],tblPontuaçõesDeAula[Aula],Cálculos!$C22,tblPontuaçõesDeAula[Tipo],Cálculos!AG$5)*Definições!I25,"") ->  | AH22: =IFERROR(AVERAGEIFS(tblPontuaçõesDeAula[Classificação],tblPontuaçõesDeAula[Aula],Cálculos!$C22,tblPontuaçõesDeAula[Tipo],Cálculos!AH$5)*Definições!J25,"") ->  | AI22: =IFERROR(AVERAGEIFS(tblPontuaçõesDeAula[Classificação],tblPontuaçõesDeAula[Aula],Cálculos!$C22,tblPontuaçõesDeAula[Tipo],Cálculos!AI$5)*Definições!K25,"") ->  | AJ22: 0 | AK22: =SUMIFS(Definições!E25:K25,Cálculos!AC22:AI22,">0") -> 0
C23: =IF(Definições!C26="","",Definições!C26) ->  | AC23: =IFERROR(AVERAGEIFS(tblPontuaçõesDeAula[Classificação],tblPontuaçõesDeAula[Aula],Cálculos!$C23,tblPontuaçõesDeAula[Tipo],Cálculos!AC$5)*Definições!E26,"") ->  | AD23: =IFERROR(AVERAGEIFS(tblPontuaçõesDeAula[Classificação],tblPontuaçõesDeAula[Aula],Cálculos!$C23,tblPontuaçõesDeAula[Tipo],Cálculos!AD$5)*Definições!F26,"") ->  | AE23: =IFERROR(AVERAGEIFS(tblPontuaçõesDeAula[Classificação],tblPontuaçõesDeAula[Aula],Cálculos!$C23,tblPontuaçõesDeAula[Tipo],Cálculos!AE$5)*Definições!G26,"") ->  | AF23: =IFERROR(AVERAGEIFS(tblPontuaçõesDeAula[Classificação],tblPontuaçõesDeAula[Aula],Cálculos!$C23,tblPontuaçõesDeAula[Tipo],Cálculos!AF$5)*Definições!H26,"") ->  | AG23: =IFERROR(AVERAGEIFS(tblPontuaçõesDeAula[Classificação],tblPontuaçõesDeAula[Aula],Cálculos!$C23,tblPontuaçõesDeAula[Tipo],Cálculos!AG$5)*Definições!I26,"") ->  | AH23: =IFERROR(AVERAGEIFS(tblPontuaçõesDeAula[Classificação],tblPontuaçõesDeAula[Aula],Cálculos!$C23,tblPontuaçõesDeAula[Tipo],Cálculos!AH$5)*Definições!J26,"") ->  | AI23: =IFERROR(AVERAGEIFS(tblPontuaçõesDeAula[Classificação],tblPontuaçõesDeAula[Aula],Cálculos!$C23,tblPontuaçõesDeAula[Tipo],Cálculos!AI$5)*Definições!K26,"") ->  | AJ23: 0 | AK23: =SUMIFS(Definições!E26:K26,Cálculos!AC23:AI23,">0") -> 0
C24: =IF(Definições!C27="","",Definições!C27) ->  | AC24: =IFERROR(AVERAGEIFS(tblPontuaçõesDeAula[Classificação],tblPontuaçõesDeAula[Aula],Cálculos!$C24,tblPontuaçõesDeAula[Tipo],Cálculos!AC$5)*Definições!E27,"") ->  | AD24: =IFERROR(AVERAGEIFS(tblPontuaçõesDeAula[Classificação],tblPontuaçõesDeAula[Aula],Cálculos!$C24,tblPontuaçõesDeAula[Tipo],Cálculos!AD$5)*Definições!F27,"") ->  | AE24: =IFERROR(AVERAGEIFS(tblPontuaçõesDeAula[Classificação],tblPontuaçõesDeAula[Aula],Cálculos!$C24,tblPontuaçõesDeAula[Tipo],Cálculos!AE$5)*Definições!G27,"") ->  | AF24: =IFERROR(AVERAGEIFS(tblPontuaçõesDeAula[Classificação],tblPontuaçõesDeAula[Aula],Cálculos!$C24,tblPontuaçõesDeAula[Tipo],Cálculos!AF$5)*Definições!H27,"") ->  | AG24: =IFERROR(AVERAGEIFS(tblPontuaçõesDeAula[Classificação],tblPontuaçõesDeAula[Aula],Cálculos!$C24,tblPontuaçõesDeAula[Tipo],Cálculos!AG$5)*Definições!I27,"") ->  | AH24: =IFERROR(AVERAGEIFS(tblPontuaçõesDeAula[Classificação],tblPontuaçõesDeAula[Aula],Cálculos!$C24,tblPontuaçõesDeAula[Tipo],Cálculos!AH$5)*Definições!J27,"") ->  | AI24: =IFERROR(AVERAGEIFS(tblPontuaçõesDeAula[Classificação],tblPontuaçõesDeAula[Aula],Cálculos!$C24,tblPontuaçõesDeAula[Tipo],Cálculos!AI$5)*Definições!K27,"") ->  | AJ24: 0 | AK24: =SUMIFS(Definições!E27:K27,Cálculos!AC24:AI24,">0") -> 0
C25: =IF(Definições!C28="","",Definições!C28) ->  | AC25: =IFERROR(AVERAGEIFS(tblPontuaçõesDeAula[Classificação],tblPontuaçõesDeAula[Aula],Cálculos!$C25,tblPontuaçõesDeAula[Tipo],Cálculos!AC$5)*Definições!E28,"") ->  | AD25: =IFERROR(AVERAGEIFS(tblPontuaçõesDeAula[Classificação],tblPontuaçõesDeAula[Aula],Cálculos!$C25,tblPontuaçõesDeAula[Tipo],Cálculos!AD$5)*Definições!F28,"") ->  | AE25: =IFERROR(AVERAGEIFS(tblPontuaçõesDeAula[Classificação],tblPontuaçõesDeAula[Aula],Cálculos!$C25,tblPontuaçõesDeAula[Tipo],Cálculos!AE$5)*Definições!G28,"") ->  | AF25: =IFERROR(AVERAGEIFS(tblPontuaçõesDeAula[Classificação],tblPontuaçõesDeAula[Aula],Cálculos!$C25,tblPontuaçõesDeAula[Tipo],Cálculos!AF$5)*Definições!H28,"") ->  | AG25: =IFERROR(AVERAGEIFS(tblPontuaçõesDeAula[Classificação],tblPontuaçõesDeAula[Aula],Cálculos!$C25,tblPontuaçõesDeAula[Tipo],Cálculos!AG$5)*Definições!I28,"") ->  | AH25: =IFERROR(AVERAGEIFS(tblPontuaçõesDeAula[Classificação],tblPontuaçõesDeAula[Aula],Cálculos!$C25,tblPontuaçõesDeAula[Tipo],Cálculos!AH$5)*Definições!J28,"") ->  | AI25: =IFERROR(AVERAGEIFS(tblPontuaçõesDeAula[Classificação],tblPontuaçõesDeAula[Aula],Cálculos!$C25,tblPontuaçõesDeAula[Tipo],Cálculos!AI$5)*Definições!K28,"") ->  | AJ25: 0 | AK25: =SUMIFS(Definições!E28:K28,Cálculos!AC25:AI25,">0") -> 0
C26: =IF(Definições!C29="","",Definições!C29) ->  | AC26: =IFERROR(AVERAGEIFS(tblPontuaçõesDeAula[Classificação],tblPontuaçõesDeAula[Aula],Cálculos!$C26,tblPontuaçõesDeAula[Tipo],Cálculos!AC$5)*Definições!E29,"") ->  | AD26: =IFERROR(AVERAGEIFS(tblPontuaçõesDeAula[Classificação],tblPontuaçõesDeAula[Aula],Cálculos!$C26,tblPontuaçõesDeAula[Tipo],Cálculos!AD$5)*Definições!F29,"") ->  | AE26: =IFERROR(AVERAGEIFS(tblPontuaçõesDeAula[Classificação],tblPontuaçõesDeAula[Aula],Cálculos!$C26,tblPontuaçõesDeAula[Tipo],Cálculos!AE$5)*Definições!G29,"") ->  | AF26: =IFERROR(AVERAGEIFS(tblPontuaçõesDeAula[Classificação],tblPontuaçõesDeAula[Aula],Cálculos!$C26,tblPontuaçõesDeAula[Tipo],Cálculos!AF$5)*Definições!H29,"") ->  | AG26: =IFERROR(AVERAGEIFS(tblPontuaçõesDeAula[Classificação],tblPontuaçõesDeAula[Aula],Cálculos!$C26,tblPontuaçõesDeAula[Tipo],Cálculos!AG$5)*Definições!I29,"") ->  | AH26: =IFERROR(AVERAGEIFS(tblPontuaçõesDeAula[Classificação],tblPontuaçõesDeAula[Aula],Cálculos!$C26,tblPontuaçõesDeAula[Tipo],Cálculos!AH$5)*Definições!J29,"") ->  | AI26: =IFERROR(AVERAGEIFS(tblPontuaçõesDeAula[Classificação],tblPontuaçõesDeAula[Aula],Cálculos!$C26,tblPontuaçõesDeAula[Tipo],Cálculos!AI$5)*Definições!K29,"") ->  | AJ26: 0 | AK26: =SUMIFS(Definições!E29:K29,Cálculos!AC26:AI26,">0") -> 0
C27: =IF(Definições!C30="","",Definições!C30) ->  | AC27: =IFERROR(AVERAGEIFS(tblPontuaçõesDeAula[Classificação],tblPontuaçõesDeAula[Aula],Cálculos!$C27,tblPontuaçõesDeAula[Tipo],Cálculos!AC$5)*Definições!E30,"") ->  | AD27: =IFERROR(AVERAGEIFS(tblPontuaçõesDeAula[Classificação],tblPontuaçõesDeAula[Aula],Cálculos!$C27,tblPontuaçõesDeAula[Tipo],Cálculos!AD$5)*Definições!F30,"") ->  | AE27: =IFERROR(AVERAGEIFS(tblPontuaçõesDeAula[Classificação],tblPontuaçõesDeAula[Aula],Cálculos!$C27,tblPontuaçõesDeAula[Tipo],Cálculos!AE$5)*Definições!G30,"") ->  | AF27: =IFERROR(AVERAGEIFS(tblPontuaçõesDeAula[Classificação],tblPontuaçõesDeAula[Aula],Cálculos!$C27,tblPontuaçõesDeAula[Tipo],Cálculos!AF$5)*Definições!H30,"") ->  | AG27: =IFERROR(AVERAGEIFS(tblPontuaçõesDeAula[Classificação],tblPontuaçõesDeAula[Aula],Cálculos!$C27,tblPontuaçõesDeAula[Tipo],Cálculos!AG$5)*Definições!I30,"") ->  | AH27: =IFERROR(AVERAGEIFS(tblPontuaçõesDeAula[Classificação],tblPontuaçõesDeAula[Aula],Cálculos!$C27,tblPontuaçõesDeAula[Tipo],Cálculos!AH$5)*Definições!J30,"") ->  | AI27: =IFERROR(AVERAGEIFS(tblPontuaçõesDeAula[Classificação],tblPontuaçõesDeAula[Aula],Cálculos!$C27,tblPontuaçõesDeAula[Tipo],Cálculos!AI$5)*Definições!K30,"") ->  | AJ27: 0 | AK27: =SUMIFS(Definições!E30:K30,Cálculos!AC27:AI27,">0") -> 0
C28: =IF(Definições!C31="","",Definições!C31) ->  | AC28: =IFERROR(AVERAGEIFS(tblPontuaçõesDeAula[Classificação],tblPontuaçõesDeAula[Aula],Cálculos!$C28,tblPontuaçõesDeAula[Tipo],Cálculos!AC$5)*Definições!E31,"") ->  | AD28: =IFERROR(AVERAGEIFS(tblPontuaçõesDeAula[Classificação],tblPontuaçõesDeAula[Aula],Cálculos!$C28,tblPontuaçõesDeAula[Tipo],Cálculos!AD$5)*Definições!F31,"") ->  | AE28: =IFERROR(AVERAGEIFS(tblPontuaçõesDeAula[Classificação],tblPontuaçõesDeAula[Aula],Cálculos!$C28,tblPontuaçõesDeAula[Tipo],Cálculos!AE$5)*Definições!G31,"") ->  | AF28: =IFERROR(AVERAGEIFS(tblPontuaçõesDeAula[Classificação],tblPontuaçõesDeAula[Aula],Cálculos!$C28,tblPontuaçõesDeAula[Tipo],Cálculos!AF$5)*Definições!H31,"") ->  | AG28: =IFERROR(AVERAGEIFS(tblPontuaçõesDeAula[Classificação],tblPontuaçõesDeAula[Aula],Cálculos!$C28,tblPontuaçõesDeAula[Tipo],Cálculos!AG$5)*Definições!I31,"") ->  | AH28: =IFERROR(AVERAGEIFS(tblPontuaçõesDeAula[Classificação],tblPontuaçõesDeAula[Aula],Cálculos!$C28,tblPontuaçõesDeAula[Tipo],Cálculos!AH$5)*Definições!J31,"") ->  | AI28: =IFERROR(AVERAGEIFS(tblPontuaçõesDeAula[Classificação],tblPontuaçõesDeAula[Aula],Cálculos!$C28,tblPontuaçõesDeAula[Tipo],Cálculos!AI$5)*Definições!K31,"") ->  | AJ28: 0 | AK28: =SUMIFS(Definições!E31:K31,Cálculos!AC28:AI28,">0") -> 0
C29: =IF(Definições!C32="","",Definições!C32) ->  | AC29: =IFERROR(AVERAGEIFS(tblPontuaçõesDeAula[Classificação],tblPontuaçõesDeAula[Aula],Cálculos!$C29,tblPontuaçõesDeAula[Tipo],Cálculos!AC$5)*Definições!E32,"") ->  | AD29: =IFERROR(AVERAGEIFS(tblPontuaçõesDeAula[Classificação],tblPontuaçõesDeAula[Aula],Cálculos!$C29,tblPontuaçõesDeAula[Tipo],Cálculos!AD$5)*Definições!F32,"") ->  | AE29: =IFERROR(AVERAGEIFS(tblPontuaçõesDeAula[Classificação],tblPontuaçõesDeAula[Aula],Cálculos!$C29,tblPontuaçõesDeAula[Tipo],Cálculos!AE$5)*Definições!G32,"") ->  | AF29: =IFERROR(AVERAGEIFS(tblPontuaçõesDeAula[Classificação],tblPontuaçõesDeAula[Aula],Cálculos!$C29,tblPontuaçõesDeAula[Tipo],Cálculos!AF$5)*Definições!H32,"") ->  | AG29: =IFERROR(AVERAGEIFS(tblPontuaçõesDeAula[Classificação],tblPontuaçõesDeAula[Aula],Cálculos!$C29,tblPontuaçõesDeAula[Tipo],Cálculos!AG$5)*Definições!I32,"") ->  | AH29: =IFERROR(AVERAGEIFS(tblPontuaçõesDeAula[Classificação],tblPontuaçõesDeAula[Aula],Cálculos!$C29,tblPontuaçõesDeAula[Tipo],Cálculos!AH$5)*Definições!J32,"") ->  | AI29: =IFERROR(AVERAGEIFS(tblPontuaçõesDeAula[Classificação],tblPontuaçõesDeAula[Aula],Cálculos!$C29,tblPontuaçõesDeAula[Tipo],Cálculos!AI$5)*Definições!K32,"") ->  | AJ29: 0 | AK29: =SUMIFS(Definições!E32:K32,Cálculos!AC29:AI29,">0") -> 0
C30: =IF(Definições!C33="","",Definições!C33) ->  | AC30: =IFERROR(AVERAGEIFS(tblPontuaçõesDeAula[Classificação],tblPontuaçõesDeAula[Aula],Cálculos!$C30,tblPontuaçõesDeAula[Tipo],Cálculos!AC$5)*Definições!E33,"") ->  | AD30: =IFERROR(AVERAGEIFS(tblPontuaçõesDeAula[Classificação],tblPontuaçõesDeAula[Aula],Cálculos!$C30,tblPontuaçõesDeAula[Tipo],Cálculos!AD$5)*Definições!F33,"") ->  | AE30: =IFERROR(AVERAGEIFS(tblPontuaçõesDeAula[Classificação],tblPontuaçõesDeAula[Aula],Cálculos!$C30,tblPontuaçõesDeAula[Tipo],Cálculos!AE$5)*Definições!G33,"") ->  | AF30: =IFERROR(AVERAGEIFS(tblPontuaçõesDeAula[Classificação],tblPontuaçõesDeAula[Aula],Cálculos!$C30,tblPontuaçõesDeAula[Tipo],Cálculos!AF$5)*Definições!H33,"") ->  | AG30: =IFERROR(AVERAGEIFS(tblPontuaçõesDeAula[Classificação],tblPontuaçõesDeAula[Aula],Cálculos!$C30,tblPontuaçõesDeAula[Tipo],Cálculos!AG$5)*Definições!I33,"") ->  | AH30: =IFERROR(AVERAGEIFS(tblPontuaçõesDeAula[Classificação],tblPontuaçõesDeAula[Aula],Cálculos!$C30,tblPontuaçõesDeAula[Tipo],Cálculos!AH$5)*Definições!J33,"") ->  | AI30: =IFERROR(AVERAGEIFS(tblPontuaçõesDeAula[Classificação],tblPontuaçõesDeAula[Aula],Cálculos!$C30,tblPontuaçõesDeAula[Tipo],Cálculos!AI$5)*Definições!K33,"") ->  | AJ30: 0 | AK30: =SUMIFS(Definições!E33:K33,Cálculos!AC30:AI30,">0") -> 0
B33: 1 | C33: ='Folha de Pontuações'!C4&COUNTIF('Folha de Pontuações'!$C$4:C4,'Folha de Pontuações'!C4) -> Francês Moderno1
B34: 2 | C34: ='Folha de Pontuações'!C5&COUNTIF('Folha de Pontuações'!$C$4:C5,'Folha de Pontuações'!C5) -> Programação Avançada em Java1
B35: 3 | C35: ='Folha de Pontuações'!C6&COUNTIF('Folha de Pontuações'!$C$4:C6,'Folha de Pontuações'!C6) -> Espanhol1
B36: 4 | C36: ='Folha de Pontuações'!C7&COUNTIF('Folha de Pontuações'!$C$4:C7,'Folha de Pontuações'!C7) -> Física1
B37: 5 | C37: ='Folha de Pontuações'!C8&COUNTIF('Folha de Pontuações'!$C$4:C8,'Folha de Pontuações'!C8) -> Francês Moderno2
B38: 6 | C38: ='Folha de Pontuações'!C9&COUNTIF('Folha de Pontuações'!$C$4:C9,'Folha de Pontuações'!C9) -> Francês Moderno3
B39: 7 | C39: ='Folha de Pontuações'!C10&COUNTIF('Folha de Pontuações'!$C$4:C10,'Folha de Pontuações'!C10) -> Composição1
B40: 8 | C40: ='Folha de Pontuações'!C11&COUNTIF('Folha de Pontuações'!$C$4:C11,'Folha de Pontuações'!C11) -> Matemática 11
B41: 9 | C41: ='Folha de Pontuações'!C12&COUNTIF('Folha de Pontuações'!$C$4:C12,'Folha de Pontuações'!C12) -> Matemática 21
B42: 10 | C42: ='Folha de Pontuações'!C13&COUNTIF('Folha de Pontuações'!$C$4:C14,'Folha de Pontuações'!C13) -> Matemática 12
B43: 11 | C43: ='Folha de Pontuações'!C14&COUNTIF('Folha de Pontuações'!$C$4:C14,'Folha de Pontuações'!C14) -> Matemática 22
B44: 12 | C44: ='Folha de Pontuações'!C15&COUNTIF('Folha de Pontuações'!$C$4:C15,'Folha de Pontuações'!C15) -> 0
B45: 13 | C45: ='Folha de Pontuações'!C16&COUNTIF('Folha de Pontuações'!$C$4:C16,'Folha de Pontuações'!C16) -> 0
B46: 14 | C46: ='Folha de Pontuações'!C17&COUNTIF('Folha de Pontuações'!$C$4:C17,'Folha de Pontuações'!C17) -> 0
B47: 15 | C47: ='Folha de Pontuações'!C18&COUNTIF('Folha de Pontuações'!$C$4:C18,'Folha de Pontuações'!C18) -> 0
B48: 16 | C48: ='Folha de Pontuações'!C19&COUNTIF('Folha de Pontuações'!$C$4:C19,'Folha de Pontuações'!C19) -> 0
B49: 17 | C49: ='Folha de Pontuações'!C20&COUNTIF('Folha de Pontuações'!$C$4:C20,'Folha de Pontuações'!C20) -> 0
B50: 18 | C50: ='Folha de Pontuações'!C21&COUNTIF('Folha de Pontuações'!$C$4:C21,'Folha de Pontuações'!C21) -> 0
B51: 19 | C51: ='Folha de Pontuações'!C22&COUNTIF('Folha de Pontuações'!$C$4:C22,'Folha de Pontuações'!C22) -> 0
B52: 20 | C52: ='Folha de Pontuações'!C23&COUNTIF('Folha de Pontuações'!$C$4:C23,'Folha de Pontuações'!C23) -> 0
B53: 21 | C53: ='Folha de Pontuações'!C24&COUNTIF('Folha de Pontuações'!$C$4:C24,'Folha de Pontuações'!C24) -> 0
B54: 22 | C54: ='Folha de Pontuações'!C25&COUNTIF('Folha de Pontuações'!$C$4:C25,'Folha de Pontuações'!C25) -> 0
B55: 23 | C55: ='Folha de Pontuações'!C26&COUNTIF('Folha de Pontuações'!$C$4:C26,'Folha de Pontuações'!C26) -> 0
B56: 24 | C56: ='Folha de Pontuações'!C27&COUNTIF('Folha de Pontuações'!$C$4:C27,'Folha de Pontuações'!C27) -> 0
B57: 25 | C57: ='Folha de Pontuações'!C28&COUNTIF('Folha de Pontuações'!$C$4:C28,'Folha de Pontuações'!C28) -> 0
B58: 26 | C58: ='Folha de Pontuações'!C29&COUNTIF('Folha de Pontuações'!$C$4:C29,'Folha de Pontuações'!C29) -> 0
B59: 27 | C59: ='Folha de Pontuações'!C30&COUNTIF('Folha de Pontuações'!$C$4:C30,'Folha de Pontuações'!C30) -> 0
B60: 28 | C60: ='Folha de Pontuações'!C31&COUNTIF('Folha de Pontuações'!$C$4:C31,'Folha de Pontuações'!C31) -> 0
B61: 29 | C61: ='Folha de Pontuações'!C32&COUNTIF('Folha de Pontuações'!$C$4:C32,'Folha de Pontuações'!C32) -> 0
B62: 30 | C62: ='Folha de Pontuações'!C33&COUNTIF('Folha de Pontuações'!$C$4:C33,'Folha de Pontuações'!C33) -> 0
B63: 31 | C63: ='Folha de Pontuações'!C34&COUNTIF('Folha de Pontuações'!$C$4:C34,'Folha de Pontuações'!C34) -> 0
B64: 32 | C64: ='Folha de Pontuações'!C35&COUNTIF('Folha de Pontuações'!$C$4:C35,'Folha de Pontuações'!C35) -> 0
B65: 33 | C65: ='Folha de Pontuações'!C36&COUNTIF('Folha de Pontuações'!$C$4:C36,'Folha de Pontuações'!C36) -> 0
B66: 34 | C66: ='Folha de Pontuações'!C37&COUNTIF('Folha de Pontuações'!$C$4:C37,'Folha de Pontuações'!C37) -> 0
B67: 35 | C67: ='Folha de Pontuações'!C38&COUNTIF('Folha de Pontuações'!$C$4:C38,'Folha de Pontuações'!C38) -> 0
B68: 36 | C68: ='Folha de Pontuações'!C39&COUNTIF('Folha de Pontuações'!$C$4:C39,'Folha de Pontuações'!C39) -> 0
B69: 37 | C69: ='Folha de Pontuações'!C40&COUNTIF('Folha de Pontuações'!$C$4:C40,'Folha de Pontuações'!C40) -> 0
B70: 38 | C70: ='Folha de Pontuações'!C41&COUNTIF('Folha de Pontuações'!$C$4:C41,'Folha de Pontuações'!C41) -> 0
B71: 39 | C71: ='Folha de Pontuações'!C42&COUNTIF('Folha de Pontuações'!$C$4:C42,'Folha de Pontuações'!C42) -> 0
B72: 40 | C72: ='Folha de Pontuações'!C43&COUNTIF('Folha de Pontuações'!$C$4:C43,'Folha de Pontuações'!C43) -> 0
B73: 41 | C73: ='Folha de Pontuações'!C44&COUNTIF('Folha de Pontuações'!$C$4:C44,'Folha de Pontuações'!C44) -> 0
B74: 42 | C74: ='Folha de Pontuações'!C45&COUNTIF('Folha de Pontuações'!$C$4:C45,'Folha de Pontuações'!C45) -> 0
B75: 43 | C75: ='Folha de Pontuações'!C46&COUNTIF('Folha de Pontuações'!$C$4:C46,'Folha de Pontuações'!C46) -> 0
B76: 44 | C76: ='Folha de Pontuações'!C47&COUNTIF('Folha de Pontuações'!$C$4:C47,'Folha de Pontuações'!C47) -> 0
B77: 45 | C77: ='Folha de Pontuações'!C48&COUNTIF('Folha de Pontuações'!$C$4:C48,'Folha de Pontuações'!C48) -> 0
B78: 46 | C78: ='Folha de Pontuações'!C49&COUNTIF('Folha de Pontuações'!$C$4:C49,'Folha de Pontuações'!C49) -> 0
B79: 47 | C79: ='Folha de Pontuações'!C50&COUNTIF('Folha de Pontuações'!$C$4:C50,'Folha de Pontuações'!C50) -> 0
B80: 48 | C80: ='Folha de Pontuações'!C51&COUNTIF('Folha de Pontuações'!$C$4:C51,'Folha de Pontuações'!C51) -> 0
B81: 49 | C81: ='Folha de Pontuações'!C52&COUNTIF('Folha de Pontuações'!$C$4:C52,'Folha de Pontuações'!C52) -> 0
B82: 50 | C82: ='Folha de Pontuações'!C53&COUNTIF('Folha de Pontuações'!$C$4:C53,'Folha de Pontuações'!C53) -> 0
B83: 51 | C83: ='Folha de Pontuações'!C54&COUNTIF('Folha de Pontuações'!$C$4:C54,'Folha de Pontuações'!C54) -> 0
B84: 52 | C84: ='Folha de Pontuações'!C55&COUNTIF('Folha de Pontuações'!$C$4:C55,'Folha de Pontuações'!C55) -> 0
B85: 53 | C85: ='Folha de Pontuações'!C56&COUNTIF('Folha de Pontuações'!$C$4:C56,'Folha de Pontuações'!C56) -> 0
B86: 54 | C86: ='Folha de Pontuações'!C57&COUNTIF('Folha de Pontuações'!$C$4:C57,'Folha de Pontuações'!C57) -> 0
B87: 55 | C87: ='Folha de Pontuações'!C58&COUNTIF('Folha de Pontuações'!$C$4:C58,'Folha de Pontuações'!C58) -> 0
B88: 56 | C88: ='Folha de Pontuações'!C59&COUNTIF('Folha de Pontuações'!$C$4:C59,'Folha de Pontuações'!C59) -> 0
B89: 57 | C89: ='Folha de Pontuações'!C60&COUNTIF('Folha de Pontuações'!$C$4:C60,'Folha de Pontuações'!C60) -> 0
B90: 58 | C90: ='Folha de Pontuações'!C61&COUNTIF('Folha de Pontuações'!$C$4:C61,'Folha de Pontuações'!C61) -> 0
B91: 59 | C91: ='Folha de Pontuações'!C62&COUNTIF('Folha de Pontuações'!$C$4:C62,'Folha de Pontuações'!C62) -> 0
B92: 60 | C92: ='Folha de Pontuações'!C63&COUNTIF('Folha de Pontuações'!$C$4:C63,'Folha de Pontuações'!C63) -> 0
B93: 61 | C93: ='Folha de Pontuações'!C64&COUNTIF('Folha de Pontuações'!$C$4:C64,'Folha de Pontuações'!C64) -> 0
B94: 62 | C94: ='Folha de Pontuações'!C65&COUNTIF('Folha de Pontuações'!$C$4:C65,'Folha de Pontuações'!C65) -> 0
B95: 63 | C95: ='Folha de Pontuações'!C66&COUNTIF('Folha de Pontuações'!$C$4:C66,'Folha de Pontuações'!C66) -> 0
B96: 64 | C96: ='Folha de Pontuações'!C67&COUNTIF('Folha de Pontuações'!$C$4:C67,'Folha de Pontuações'!C67) -> 0
B97: 65 | C97: ='Folha de Pontuações'!C68&COUNTIF('Folha de Pontuações'!$C$4:C68,'Folha de Pontuações'!C68) -> 0
B98: 66 | C98: ='Folha de Pontuações'!C69&COUNTIF('Folha de Pontuações'!$C$4:C69,'Folha de Pontuações'!C69) -> 0
B99: 67 | C99: ='Folha de Pontuações'!C70&COUNTIF('Folha de Pontuações'!$C$4:C70,'Folha de Pontuações'!C70) -> 0
B100: 68 | C100: ='Folha de Pontuações'!C71&COUNTIF('Folha de Pontuações'!$C$4:C71,'Folha de Pontuações'!C71) -> 0
B101: 69 | C101: ='Folha de Pontuações'!C72&COUNTIF('Folha de Pontuações'!$C$4:C72,'Folha de Pontuações'!C72) -> 0
B102: 70 | C102: ='Folha de Pontuações'!C73&COUNTIF('Folha de Pontuações'!$C$4:C73,'Folha de Pontuações'!C73) -> 0
B103: 71 | C103: ='Folha de Pontuações'!C74&COUNTIF('Folha de Pontuações'!$C$4:C74,'Folha de Pontuações'!C74) -> 0
B104: 72 | C104: ='Folha de Pontuações'!C75&COUNTIF('Folha de Pontuações'!$C$4:C75,'Folha de Pontuações'!C75) -> 0
B105: 73 | C105: ='Folha de Pontuações'!C76&COUNTIF('Folha de Pontuações'!$C$4:C76,'Folha de Pontuações'!C76) -> 0
B106: 74 | C106: ='Folha de Pontuações'!C77&COUNTIF('Folha de Pontuações'!$C$4:C77,'Folha de Pontuações'!C77) -> 0
B107: 75 | C107: ='Folha de Pontuações'!C78&COUNTIF('Folha de Pontuações'!$C$4:C78,'Folha de Pontuações'!C78) -> 0
B108: 76 | C108: ='Folha de Pontuações'!C79&COUNTIF('Folha de Pontuações'!$C$4:C79,'Folha de Pontuações'!C79) -> 0
B109: 77 | C109: ='Folha de Pontuações'!C80&COUNTIF('Folha de Pontuações'!$C$4:C80,'Folha de Pontuações'!C80) -> 0
B110: 78 | C110: ='Folha de Pontuações'!C81&COUNTIF('Folha de Pontuações'!$C$4:C81,'Folha de Pontuações'!C81) -> 0
B111: 79 | C111: ='Folha de Pontuações'!C82&COUNTIF('Folha de Pontuações'!$C$4:C82,'Folha de Pontuações'!C82) -> 0
B112: 80 | C112: ='Folha de Pontuações'!C83&COUNTIF('Folha de Pontuações'!$C$4:C83,'Folha de Pontuações'!C83) -> 0
B113: 81 | C113: ='Folha de Pontuações'!C84&COUNTIF('Folha de Pontuações'!$C$4:C84,'Folha de Pontuações'!C84) -> 0
B114: 82 | C114: ='Folha de Pontuações'!C85&COUNTIF('Folha de Pontuações'!$C$4:C85,'Folha de Pontuações'!C85) -> 0
B115: 83 | C115: ='Folha de Pontuações'!C86&COUNTIF('Folha de Pontuações'!$C$4:C86,'Folha de Pontuações'!C86) -> 0
B116: 84 | C116: ='Folha de Pontuações'!C87&COUNTIF('Folha de Pontuações'!$C$4:C87,'Folha de Pontuações'!C87) -> 0
B117: 85 | C117: ='Folha de Pontuações'!C88&COUNTIF('Folha de Pontuações'!$C$4:C88,'Folha de Pontuações'!C88) -> 0
B118: 86 | C118: ='Folha de Pontuações'!C89&COUNTIF('Folha de Pontuações'!$C$4:C89,'Folha de Pontuações'!C89) -> 0
B119: 87 | C119: ='Folha de Pontuações'!C90&COUNTIF('Folha de Pontuações'!$C$4:C90,'Folha de Pontuações'!C90) -> 0
B120: 88 | C120: ='Folha de Pontuações'!C91&COUNTIF('Folha de Pontuações'!$C$4:C91,'Folha de Pontuações'!C91) -> 0
B121: 89 | C121: ='Folha de Pontuações'!C92&COUNTIF('Folha de Pontuações'!$C$4:C92,'Folha de Pontuações'!C92) -> 0
B122: 90 | C122: ='Folha de Pontuações'!C93&COUNTIF('Folha de Pontuações'!$C$4:C93,'Folha de Pontuações'!C93) -> 0
B123: 91 | C123: ='Folha de Pontuações'!C94&COUNTIF('Folha de Pontuações'!$C$4:C94,'Folha de Pontuações'!C94) -> 0
B124: 92 | C124: ='Folha de Pontuações'!C95&COUNTIF('Folha de Pontuações'!$C$4:C95,'Folha de Pontuações'!C95) -> 0
B125: 93 | C125: ='Folha de Pontuações'!C96&COUNTIF('Folha de Pontuações'!$C$4:C96,'Folha de Pontuações'!C96) -> 0
B126: 94 | C126: ='Folha de Pontuações'!C97&COUNTIF('Folha de Pontuações'!$C$4:C97,'Folha de Pontuações'!C97) -> 0
B127: 95 | C127: ='Folha de Pontuações'!C98&COUNTIF('Folha de Pontuações'!$C$4:C98,'Folha de Pontuações'!C98) -> 0
B128: 96 | C128: ='Folha de Pontuações'!C99&COUNTIF('Folha de Pontuações'!$C$4:C99,'Folha de Pontuações'!C99) -> 0
B129: 97 | C129: ='Folha de Pontuações'!C100&COUNTIF('Folha de Pontuações'!$C$4:C100,'Folha de Pontuações'!C100) -> 0
B130: 98 | C130: ='Folha de Pontuações'!C101&COUNTIF('Folha de Pontuações'!$C$4:C101,'Folha de Pontuações'!C101) -> 0
B131: 99 | C131: ='Folha de Pontuações'!C102&COUNTIF('Folha de Pontuações'!$C$4:C102,'Folha de Pontuações'!C102) -> 0
B132: 100 | C132: ='Folha de Pontuações'!C103&COUNTIF('Folha de Pontuações'!$C$4:C103,'Folha de Pontuações'!C103) -> 0
B133: 101 | C133: ='Folha de Pontuações'!C104&COUNTIF('Folha de Pontuações'!$C$4:C104,'Folha de Pontuações'!C104) -> 0
B134: 102 | C134: ='Folha de Pontuações'!C105&COUNTIF('Folha de Pontuações'!$C$4:C105,'Folha de Pontuações'!C105) -> 0
B135: 103 | C135: ='Folha de Pontuações'!C106&COUNTIF('Folha de Pontuações'!$C$4:C106,'Folha de Pontuações'!C106) -> 0
B136: 104 | C136: ='Folha de Pontuações'!C107&COUNTIF('Folha de Pontuações'!$C$4:C107,'Folha de Pontuações'!C107) -> 0
B137: 105 | C137: ='Folha de Pontuações'!C108&COUNTIF('Folha de Pontuações'!$C$4:C108,'Folha de Pontuações'!C108) -> 0
B138: 106 | C138: ='Folha de Pontuações'!C109&COUNTIF('Folha de Pontuações'!$C$4:C109,'Folha de Pontuações'!C109) -> 0
B139: 107 | C139: ='Folha de Pontuações'!C110&COUNTIF('Folha de Pontuações'!$C$4:C110,'Folha de Pontuações'!C110) -> 0
B140: 108 | C140: ='Folha de Pontuações'!C111&COUNTIF('Folha de Pontuações'!$C$4:C111,'Folha de Pontuações'!C111) -> 0
B141: 109 | C141: ='Folha de Pontuações'!C112&COUNTIF('Folha de Pontuações'!$C$4:C112,'Folha de Pontuações'!C112) -> 0
B142: 110 | C142: ='Folha de Pontuações'!C113&COUNTIF('Folha de Pontuações'!$C$4:C113,'Folha de Pontuações'!C113) -> 0
B143: 111 | C143: ='Folha de Pontuações'!C114&COUNTIF('Folha de Pontuações'!$C$4:C114,'Folha de Pontuações'!C114) -> 0
B144: 112 | C144: ='Folha de Pontuações'!C115&COUNTIF('Folha de Pontuações'!$C$4:C115,'Folha de Pontuações'!C115) -> 0
B145: 113 | C145: ='Folha de Pontuações'!C116&COUNTIF('Folha de Pontuações'!$C$4:C116,'Folha de Pontuações'!C116) -> 0
B146: 114 | C146: ='Folha de Pontuações'!C117&COUNTIF('Folha de Pontuações'!$C$4:C117,'Folha de Pontuações'!C117) -> 0
B147: 115 | C147: ='Folha de Pontuações'!C118&COUNTIF('Folha de Pontuações'!$C$4:C118,'Folha de Pontuações'!C118) -> 0
B148: 116 | C148: ='Folha de Pontuações'!C119&COUNTIF('Folha de Pontuações'!$C$4:C119,'Folha de Pontuações'!C119) -> 0
B149: 117 | C149: ='Folha de Pontuações'!C120&COUNTIF('Folha de Pontuações'!$C$4:C120,'Folha de Pontuações'!C120) -> 0
B150: 118 | C150: ='Folha de Pontuações'!C121&COUNTIF('Folha de Pontuações'!$C$4:C121,'Folha de Pontuações'!C121) -> 0
B151: 119 | C151: ='Folha de Pontuações'!C122&COUNTIF('Folha de Pontuações'!$C$4:C122,'Folha de Pontuações'!C122) -> 0
B152: 120 | C152: ='Folha de Pontuações'!C123&COUNTIF('Folha de Pontuações'!$C$4:C123,'Folha de Pontuações'!C123) -> 0
B153: 121 | C153: ='Folha de Pontuações'!C124&COUNTIF('Folha de Pontuações'!$C$4:C124,'Folha de Pontuações'!C124) -> 0
B154: 122 | C154: ='Folha de Pontuações'!C125&COUNTIF('Folha de Pontuações'!$C$4:C125,'Folha de Pontuações'!C125) -> 0
B155: 123 | C155: ='Folha de Pontuações'!C126&COUNTIF('Folha de Pontuações'!$C$4:C126,'Folha de Pontuações'!C126) -> 0
B156: 124 | C156: ='Folha de Pontuações'!C127&COUNTIF('Folha de Pontuações'!$C$4:C127,'Folha de Pontuações'!C127) -> 0
B157: 125 | C157: ='Folha de Pontuações'!C128&COUNTIF('Folha de Pontuações'!$C$4:C128,'Folha de Pontuações'!C128) -> 0
B158: 126 | C158: ='Folha de Pontuações'!C129&COUNTIF('Folha de Pontuações'!$C$4:C129,'Folha de Pontuações'!C129) -> 0
B159: 127 | C159: ='Folha de Pontuações'!C130&COUNTIF('Folha de Pontuações'!$C$4:C130,'Folha de Pontuações'!C130) -> 0
B160: 128 | C160: ='Folha de Pontuações'!C131&COUNTIF('Folha de Pontuações'!$C$4:C131,'Folha de Pontuações'!C131) -> 0
B161: 129 | C161: ='Folha de Pontuações'!C132&COUNTIF('Folha de Pontuações'!$C$4:C132,'Folha de Pontuações'!C132) -> 0
B162: 130 | C162: ='Folha de Pontuações'!C133&COUNTIF('Folha de Pontuações'!$C$4:C133,'Folha de Pontuações'!C133) -> 0
B163: 131 | C163: ='Folha de Pontuações'!C134&COUNTIF('Folha de Pontuações'!$C$4:C134,'Folha de Pontuações'!C134) -> 0
B164: 132 | C164: ='Folha de Pontuações'!C135&COUNTIF('Folha de Pontuações'!$C$4:C135,'Folha de Pontuações'!C135) -> 0
B165: 133 | C165: ='Folha de Pontuações'!C136&COUNTIF('Folha de Pontuações'!$C$4:C136,'Folha de Pontuações'!C136) -> 0
B166: 134 | C166: ='Folha de Pontuações'!C137&COUNTIF('Folha de Pontuações'!$C$4:C137,'Folha de Pontuações'!C137) -> 0
B167: 135 | C167: ='Folha de Pontuações'!C138&COUNTIF('Folha de Pontuações'!$C$4:C138,'Folha de Pontuações'!C138) -> 0
B168: 136 | C168: ='Folha de Pontuações'!C139&COUNTIF('Folha de Pontuações'!$C$4:C139,'Folha de Pontuações'!C139) -> 0
B169: 137 | C169: ='Folha de Pontuações'!C140&COUNTIF('Folha de Pontuações'!$C$4:C140,'Folha de Pontuações'!C140) -> 0
B170: 138 | C170: ='Folha de Pontuações'!C141&COUNTIF('Folha de Pontuações'!$C$4:C141,'Folha de Pontuações'!C141) -> 0
B171: 139 | C171: ='Folha de Pontuações'!C142&COUNTIF('Folha de Pontuações'!$C$4:C142,'Folha de Pontuações'!C142) -> 0
B172: 140 | C172: ='Folha de Pontuações'!C143&COUNTIF('Folha de Pontuações'!$C$4:C143,'Folha de Pontuações'!C143) -> 0
B173: 141 | C173: ='Folha de Pontuações'!C144&COUNTIF('Folha de Pontuações'!$C$4:C144,'Folha de Pontuações'!C144) -> 0
B174: 142 | C174: ='Folha de Pontuações'!C145&COUNTIF('Folha de Pontuações'!$C$4:C145,'Folha de Pontuações'!C145) -> 0
B175: 143 | C175: ='Folha de Pontuações'!C146&COUNTIF('Folha de Pontuações'!$C$4:C146,'Folha de Pontuações'!C146) -> 0
B176: 144 | C176: ='Folha de Pontuações'!C147&COUNTIF('Folha de Pontuações'!$C$4:C147,'Folha de Pontuações'!C147) -> 0
B177: 145 | C177: ='Folha de Pontuações'!C148&COUNTIF('Folha de Pontuações'!$C$4:C148,'Folha de Pontuações'!C148) -> 0
B178: 146 | C178: ='Folha de Pontuações'!C149&COUNTIF('Folha de Pontuações'!$C$4:C149,'Folha de Pontuações'!C149) -> 0
B179: 147 | C179: ='Folha de Pontuações'!C150&COUNTIF('Folha de Pontuações'!$C$4:C150,'Folha de Pontuações'!C150) -> 0
B180: 148 | C180: ='Folha de Pontuações'!C151&COUNTIF('Folha de Pontuações'!$C$4:C151,'Folha de Pontuações'!C151) -> 0
B181: 149 | C181: ='Folha de Pontuações'!C152&COUNTIF('Folha de Pontuações'!$C$4:C152,'Folha de Pontuações'!C152) -> 0
B182: 150 | C182: ='Folha de Pontuações'!C153&COUNTIF('Folha de Pontuações'!$C$4:C153,'Folha de Pontuações'!C153) -> 0
B183: 151 | C183: ='Folha de Pontuações'!C154&COUNTIF('Folha de Pontuações'!$C$4:C154,'Folha de Pontuações'!C154) -> 0
B184: 152 | C184: ='Folha de Pontuações'!C155&COUNTIF('Folha de Pontuações'!$C$4:C155,'Folha de Pontuações'!C155) -> 0
B185: 153 | C185: ='Folha de Pontuações'!C156&COUNTIF('Folha de Pontuações'!$C$4:C156,'Folha de Pontuações'!C156) -> 0
B186: 154 | C186: ='Folha de Pontuações'!C157&COUNTIF('Folha de Pontuações'!$C$4:C157,'Folha de Pontuações'!C157) -> 0
B187: 155 | C187: ='Folha de Pontuações'!C158&COUNTIF('Folha de Pontuações'!$C$4:C158,'Folha de Pontuações'!C158) -> 0
B188: 156 | C188: ='Folha de Pontuações'!C159&COUNTIF('Folha de Pontuações'!$C$4:C159,'Folha de Pontuações'!C159) -> 0
B189: 157 | C189: ='Folha de Pontuações'!C160&COUNTIF('Folha de Pontuações'!$C$4:C160,'Folha de Pontuações'!C160) -> 0
B190: 158 | C190: ='Folha de Pontuações'!C161&COUNTIF('Folha de Pontuações'!$C$4:C161,'Folha de Pontuações'!C161) -> 0
B191: 159 | C191: ='Folha de Pontuações'!C162&COUNTIF('Folha de Pontuações'!$C$4:C162,'Folha de Pontuações'!C162) -> 0
B192: 160 | C192: ='Folha de Pontuações'!C163&COUNTIF('Folha de Pontuações'!$C$4:C163,'Folha de Pontuações'!C163) -> 0
B193: 161 | C193: ='Folha de Pontuações'!C164&COUNTIF('Folha de Pontuações'!$C$4:C164,'Folha de Pontuações'!C164) -> 0
B194: 162 | C194: ='Folha de Pontuações'!C165&COUNTIF('Folha de Pontuações'!$C$4:C165,'Folha de Pontuações'!C165) -> 0
B195: 163 | C195: ='Folha de Pontuações'!C166&COUNTIF('Folha de Pontuações'!$C$4:C166,'Folha de Pontuações'!C166) -> 0
B196: 164 | C196: ='Folha de Pontuações'!C167&COUNTIF('Folha de Pontuações'!$C$4:C167,'Folha de Pontuações'!C167) -> 0
B197: 165 | C197: ='Folha de Pontuações'!C168&COUNTIF('Folha de Pontuações'!$C$4:C168,'Folha de Pontuações'!C168) -> 0
B198: 166 | C198: ='Folha de Pontuações'!C169&COUNTIF('Folha de Pontuações'!$C$4:C169,'Folha de Pontuações'!C169) -> 0
B199: 167 | C199: ='Folha de Pontuações'!C170&COUNTIF('Folha de Pontuações'!$C$4:C170,'Folha de Pontuações'!C170) -> 0
B200: 168 | C200: ='Folha de Pontuações'!C171&COUNTIF('Folha de Pontuações'!$C$4:C171,'Folha de Pontuações'!C171) -> 0
B201: 169 | C201: ='Folha de Pontuações'!C172&COUNTIF('Folha de Pontuações'!$C$4:C172,'Folha de Pontuações'!C172) -> 0
B202: 170 | C202: ='Folha de Pontuações'!C173&COUNTIF('Folha de Pontuações'!$C$4:C173,'Folha de Pontuações'!C173) -> 0
B203: 171 | C203: ='Folha de Pontuações'!C174&COUNTIF('Folha de Pontuações'!$C$4:C174,'Folha de Pontuações'!C174) -> 0
... 454 more rows
